Cogmind - Beta 15 @@@ ROGUE MODE // 2025.06.05 @ 18:20:13 Player: pakman Result: Destroyed by Striker with Compact Linear Accelerator Performance ------------- Evolutions (5) 2500 Regions Visited (11) 2200 Robots Destroyed (68) 340 Value Destroyed (1744) 1744 Prototype IDs (6) 120 Alien Tech Used (0) 0 Bonus (2394) 2394 TOTAL SCORE: 9298 Bonus ------- Follower Combat Kills 112 Entered DSFs 500 Met Warlord at Base 500 MAIN.C Attacked Warlord 500 Warlord Defense Kills 782 Cogmind --------- Core Integrity 0/1000 Matter 300/300 Energy 100/100 System Corruption 3% Temperature Cool (0) Movement Core (50) Location -5/Warlord Parts ------- > --- POWER (2) -------- (None) > --- PROPULSION (4) --- (None) > --- UTILITY (8) ------ (None) > --- WEAPON (3) ------- (None) > --- INVENTORY (5) ---- Authchip [Armor] Field Laser Vortex Rifle (24) Proton Missile Launcher Peak State ------------ > --- POWER ------------ Light Nuclear Core Light Antimatter Reactor > --- PROPULSION ------- Armored Medium Treads Armored Medium Treads Armored Medium Treads Armored Medium Treads > --- UTILITY ---------- Coolant Network Improved Target Analyzer Backup Plating III Backup Plating III Layered Medium Armor Plating Insulated Plating > --- WEAPON ----------- Gamma Rifle Beamcaster Vortex Rifle > --- INVENTORY -------- Improved Cooling System Authchip [Armor] Field Laser Ion Cannon Proton Missile Launcher [Rating: 93] Favorites ----------- Power Light Ion Engine Engine Light Ion Engine Power Core Fission Core Reactor Light Antimatter Reactor Propulsion Wheel Treads Light Treads Leg Aluminum Leg Wheel Wheel Hover Unit Backup Propulsion III Utility Large Storage Unit Device Seismic Detector Storage Large Storage Unit Processor Improved Signal Interpreter Protection Backup Plating III Weapon Assault Cannon Energy Gun Backup Laser III Energy Cannon EM Pulse Cannon Ballistic Gun Light Assault Rifle Ballistic Cannon Assault Cannon Launcher Proton Missile Launcher Special Weapon Mining Laser Impact Weapon Maul Slashing Weapon Katana Build | -11 -10 -10 -9 -8 -7 -7 -6 -5 -5 -5 -5 ------- Run | Yrd Mat Min Mat Mat Fac DSF Fac Fac Upp Upp War Slots Evolved 10 | . . . 2 2 2 . 2 2 . . . Power 1 | . . . . . 1 . . . . . . Propulsion 2 | . . . 2 . . . . . . . . Utility 6 | . . . . 2 1 . 1 2 . . . Weapon 1 | . . . . . . . 1 . . . . Parts Attached 78 | . 10 5 12 16 4 7 6 . 1 . 17 Power 12 | . . . 2 2 2 2 2 . . . 2 Engine 6 | . . . 2 2 2 . . . . . . Core 5 | . . . . . . 2 2 . . . 1 Reactor 1 | . . . . . . . . . . . 1 Propulsion 19 | . 2 . 5 5 1 2 . . . . 4 Treads 6 | . 2 . . . . . . . . . 4 Leg 1 | . . . 1 . . . . . . . . Wheel 12 | . . . 4 5 1 2 . . . . . Hover . | . . . . . . . . . . . . Flight . | . . . . . . . . . . . . Utility 23 | . 6 3 . 4 1 1 1 . 1 . 6 Device 12 | . 2 1 . 3 1 1 1 . 1 . 2 Storage 4 | . 4 . . . . . . . . . . Processor 2 | . . . . 1 . . . . . . 1 Hackware . | . . . . . . . . . . . . Protection 5 | . . 2 . . . . . . . . 3 Artifact . | . . . . . . . . . . . . Weapon 24 | . 2 2 5 5 . 2 3 . . . 5 Energy Gun 9 | . 1 . 1 3 . . . . . . 4 Energy Cannon 3 | . . . 2 . . . . . . . 1 Ballistic Gun 2 | . . 2 . . . . . . . . . Ballistic Cannon 3 | . . . . . . 2 1 . . . . Launcher 3 | . . . . 2 . . 1 . . . . Special Weapon 1 | . 1 . . . . . . . . . . Impact Weapon 2 | . . . 2 . . . . . . . . Slashing Weapon 1 | . . . . . . . 1 . . . . Piercing Weapon . | . . . . . . . . . . . . Special Melee Weapon . | . . . . . . . . . . . . Unidentified Prototypes 6 | . . . 1 2 . . . . . . 3 Parts Lost 34 | . 1 1 6 4 . 5 10 . . . 7 Power 7 | . . . 2 1 . . 2 . . . 2 Propulsion 10 | . . . 2 2 . 3 3 . . . . Utility 10 | . . . 1 1 . 1 3 . . . 4 Weapon 7 | . 1 1 1 . . 1 2 . . . 1 Highest Loss Streak 7 | . 1 1 4 2 . 3 6 . . . 7 To Critical Strikes 1 | . . . . 1 . . . . . . . Average Backups 11 | 6 8 14 13 13 12 13 13 5 5 5 4 Power 1 | 1 1 1 1 1 . . 2 . . . . Propulsion 1 | 4 2 2 . 1 . . . . . . . Utility 4 | . 3 6 5 4 5 5 5 2 2 2 1 Weapon 4 | 1 1 3 5 7 7 7 5 3 3 3 3 Tool/Special . | . . . . . . . . . . . . Unused Backups 12 | . . . 4 . . 1 6 . . . 1 Power 4 | . . . . . . . 4 . . . . Propulsion 1 | . . . 1 . . . . . . . . Utility 3 | . . . 1 . . . 1 . . . 1 Weapon 4 | . . . 2 . . 1 1 . . . . Tool/Special . | . . . . . . . . . . . . Average Slot Usage (%) 79 | . 97 99 70 98 95 81 87 . . . 51 Engine 8 | . 14 14 10 9 15 11 . . . . 5 Core 2 | . . . . . . 3 12 . . . . Treads 10 | . 23 28 14 . . . . . . . 3 Wheel 9 | . . . 6 35 27 18 17 . . . . Hover 1 | . . . . . . . . . . . 7 Device 11 | . 12 11 7 14 13 16 24 . . . . Storage 8 | . 14 14 11 9 7 7 6 . . . . Processor 1 | . . . . 2 7 7 6 . . . . Protection 4 | . . 2 1 9 7 . . . . . 13 Energy Gun 7 | . 14 6 . 11 7 . . . . . 14 Ballistic Gun 5 | . 5 20 . . . . . . . . . Ballistic Cannon 2 | . . . . . . 13 11 . . . . Special Weapon 1 | . 6 1 . . . . . . . . . Impact Weapon 1 | . . . 8 3 5 . . . . . . Peak Build Rating 93 | 6 9 11 18 32 39 40 51 1 7 1 93 Average Rating 22 | 6 7 9 11 24 35 36 48 1 1 1 37 On Entrance 12 | 6 6 8 10 15 27 39 35 1 1 1 1 Naked Turns 627 | . . . . . . . 5 91 221 156 154 Heaviest Build 61 | 12 48 29 36 41 51 52 61 . . . 53 Greatest Support 81 | 20 40 40 40 40 57 57 57 3 3 3 81 Greatest Overweight (x) 8 | . 1 . 8 1 1 1 1 . . . 2 Average Overweight (x) . | . . . . . . . . . . . . Largest Inventory Capacity 25 | 8 25 15 15 15 15 15 15 5 5 5 5 Average Capacity 12 | 8 15 15 15 15 15 15 14 5 5 5 5 Most Carried 15 | 6 11 15 15 15 14 15 14 5 5 5 5 Average Carried 11 | 6 8 14 13 13 12 13 13 5 5 5 4 Final Capacity 15 | 8 15 15 15 15 15 15 5 5 5 5 5 Final Carried 15 | 6 11 15 15 13 14 14 5 5 5 5 4 Class Distribution -------------------- 76% | Mutant 9% | Scavenger-Mutant 5% | Tank 5% | Commander-Tank Dominant Class ---------------- Mutant | -10/Materials Mutant | -10/Mines Mutant | -9/Materials Scavenger-Mutant | -8/Materials Scavenger-Mutant | -7/Factory Mutant | -7/DSF Mutant | -6/Factory Mutant | -5/Factory Mutant | -5/Upper Caves Mutant | -5/Upper Caves Tank | -5/Warlord Resources | -11 -10 -10 -9 -8 -7 -7 -6 -5 -5 -5 -5 ----------- Run | Yrd Mat Min Mat Mat Fac DSF Fac Fac Upp Upp War Matter Collected 1427 | 212 120 91 135 300 . 78 137 . 77 62 215 Remotely . | . . . . . . . . . . . . Salvage Created 2077 | 105 163 94 461 638 . 21 198 . . . 397 Parts 112 | 7 12 8 19 39 . . 16 . . . 11 Haulers Intercepted 1 | . . . . 1 . . . . . . . Recyclers Shooed 1 | 1 . . . . . . . . . . . Parts Field Recycled . | . . . . . . . . . . . . Retrieved Matter . | . . . . . . . . . . . . Parts Self-Destructed . | . . . . . . . . . . . . Prevented . | . . . . . . . . . . . . Kills | -11 -10 -10 -9 -8 -7 -7 -6 -5 -5 -5 -5 ------- Run | Yrd Mat Min Mat Mat Fac DSF Fac Fac Upp Upp War Combat Hostiles Destroyed 43 | . 5 4 7 14 . 2 5 . . . 6 Melee 6 | . . . 2 2 . . 2 . . . . Guns 12 | . 5 3 . 4 . . . . . . . Cannons 4 | . . . 1 1 . 2 . . . . . AOE 16 | . . 1 . 7 . . 3 . . . 5 Classes Destroyed 15 | 2 2 . 6 3 . 1 1 . . . . Worker 9 | . . . 4 4 . . 1 . . . . Builder 6 | . . . 1 3 . . 2 . . . . Tunneler 3 | 1 1 1 . . . . . . . . . Hauler 1 | . . . . 1 . . . . . . . Recycler 1 | 1 . . . . . . . . . . . Mechanic 1 | . . . 1 . . . . . . . . Operator 1 | . . . 1 . . . . . . . . Watcher 3 | . . . 1 2 . . . . . . . Swarmer 16 | . 3 3 . 7 . . 3 . . . . Grunt 13 | . 2 1 4 4 . . . . . . 2 Brawler 2 | . . . . 1 . . . . . . 1 Sentry 5 | . . . 3 1 . . . . . . 1 Hunter 3 | . . . . 1 . 1 1 . . . . Programmer 3 | . . . . . . . 1 . . . 2 Heavy 1 | . . . . . . 1 . . . . . Best Kill Streak 6 | 2 5 3 4 6 . 1 6 . . . 6 Combat Bots Only 6 | . 5 3 2 4 . 1 3 . . . 6 Max Kills in Single Turn 6 | 1 1 1 1 3 . 1 6 . . . 2 Gunslinging . | . . . . . . . . . . . . Exploded 3 | . . 1 . 2 . . 3 . . . 2 Melee 1 | . . . 1 1 . . 1 . . . . Uniques/NPCs Destroyed . | . . . . . . . . . . . . Combat | -11 -10 -10 -9 -8 -7 -7 -6 -5 -5 -5 -5 -------- Run | Yrd Mat Min Mat Mat Fac DSF Fac Fac Upp Upp War Hostile Shots Fired 623 | . 31 25 105 71 . 28 140 9 47 14 153 Missed 212 | . 10 8 36 25 . 12 36 5 19 6 55 Hits 411 | . 21 17 69 46 . 16 104 4 28 8 98 Melee 15 | . . . . . . . . . . . 15 Projectile 396 | . 21 17 69 46 . 16 104 4 28 8 83 Critical Strikes 12 | . . . 1 2 . . 4 . 1 . 4 Damage Taken 6320 | . 210 166 859 652 . 474 1243 91 433 117 2075 Core 1746 | . 12 39 272 122 . 37 238 91 433 117 385 Absorbed by Shields . | . . . . . . . . . . . . Redirected to Shielding 60 | . . . . . . . . . . . 60 Ignored by Resistances 290 | . . . . . . . 242 . . . 48 Regen/Repaired (Parts) 1 | . . . . . . . . . . . 1 Core Remaining (%) 75 | 100 . 79 32 77 . 94 72 . . . . Volleys Fired 127 | 4 28 16 11 42 . 14 5 . . . 7 Largest 3 | 2 2 2 2 2 . 2 2 . . . 3 Hottest 190 | 60 140 60 126 126 . 74 74 . . . 190 Shots Fired 211 | 8 41 32 12 72 . 28 9 . . . 9 Gun 123 | 8 33 32 . 47 . . . . . . 3 Cannon 67 | . . . 12 19 . 28 8 . . . . Launcher 13 | . . . . 6 . . 1 . . . 6 Special 8 | . 8 . . . . . . . . . . Kinetic 64 | 4 5 19 . . . 28 8 . . . . Thermal 56 | . 8 . . 47 . . . . . . 1 Explosive 6 | . . . . 6 . . . . . . . Electromagnetic 84 | 4 28 13 12 19 . . 1 . . . 7 Entropic 1 | . . . . . . . . . . . 1 Robot Hit Streak 12 | 2 8 8 3 12 . 5 3 . . . 2 Robot Miss Streak 5 | 2 3 3 4 5 . 2 3 . . . 4 Penetration Max . | . . . . . . . . . . . . Secondary Targets . | . . . . . . . . . . . . Shots Hit Robots 161 | 3 18 18 33 51 . 18 18 . . . 2 Core Hits 83 | 2 8 9 5 29 . 5 11 . 1 . 13 Critical Kills 3 | . . . 1 2 . . . . . . . Critical Parts Destroyed 5 | . . 1 3 1 . . . . . . . Critical Strikes 11 | . . 1 4 4 . 1 1 . . . . Destroy 1 | . . 1 . . . . . . . . . Blast 1 | . . . . . . 1 . . . . . Corrupt 1 | . . . . 1 . . . . . . . Smash 7 | . . . 4 3 . . . . . . . Sever 1 | . . . . . . . 1 . . . . Melee Attacks 100 | . . . 33 27 5 . 35 . . . . Impact 65 | . . . 33 27 5 . . . . . . Slashing 35 | . . . . . . . 35 . . . . Piercing . | . . . . . . . . . . . . Sneak Attacks 10 | . . . 8 1 . . 1 . . . . Combat Hostiles . | . . . . . . . . . . . . Follow-up Attacks . | . . . . . . . . . . . . Damage Inflicted 6180 | 62 277 207 1569 1777 . 384 966 . 15 . 923 Guns 918 | 27 234 173 . 462 . . . . . . 22 Cannons 1047 | . . . 173 401 . 384 89 . . . . Explosions 1929 | 35 43 30 . 478 . . 442 . . . 901 Melee 2267 | . . . 1396 436 . . 435 . . . . Ramming 19 | . . 4 . . . . . . 15 . . Kinetic 606 | . 46 87 . . . 384 89 . . . . Thermal 1137 | 35 43 30 . 462 . . . . . . 567 Explosive 854 | . . . . 478 . . 376 . . . . Electromagnetic 1297 | 27 188 86 173 401 . . 66 . . . 356 Impact 1832 | . . . 1396 436 . . . . . . . Slashing 435 | . . . . . . . 435 . . . . Piercing . | . . . . . . . . . . . . Highest Corruption 4 | . . . . . . . 4 . . . 3 Average Corruption 3 | . . . . . . . 3 . . . 2 Corruption Purged . | . . . . . . . . . . . . Corruption Blocked . | . . . . . . . . . . . . Effects 6 | . . . . . . . 4 . . . 2 Matter Fused 2 | . . . . . . . 1 . . . 1 Heat Flow Errors 1 | . . . . . . . 1 . . . . Energy Discharges 1 | . . . . . . . . . . . 1 Misfires 2 | . . . . . . . 2 . . . . Overload Shots . | . . . . . . . . . . . . Overflow Damage 580 | . 1 . 452 68 . . 28 . . . 31 Projectiles 9 | . . . . 9 . . . . . . . Explosions 48 | . 1 . . 16 . . . . . . 31 Melee 523 | . . . 452 43 . . 28 . . . . Knockbacks 8 | . . . 3 2 . 3 . . . . . Impact 5 | . . . 3 2 . . . . . . . Kinetic 3 | . . . . . . 3 . . . . . Secondary . | . . . . . . . . . . . . Self-Inflicted Damage 77 | . 23 . . . . . . . 7 . 47 Shots 4 | . 1 . . . . . . . . . 3 Rammed 5 | . . 1 . . . . . . 4 . . Targets Rammed 5 | . . 1 . . . . . . 4 . . Kicked . | . . . . . . . . . . . . Crushed . | . . . . . . . . . . . . Highest Temperature 348 | . 90 79 85 348 . . 211 . . . 104 Average Temperature 61 | . 24 36 35 92 . . 68 . . . 62 Received Heat Transfer 828 | . 30 57 375 225 . . 27 9 . . 105 Effects 1 | . . . . 1 . . . . . . . Energy Bleed 1 | . . . . 1 . . . . . . . Siege Activations . | . . . . . . . . . . . . Martial Activations . | . . . . . . . . . . . . Shielding Activations . | . . . . . . . . . . . . Robots Disrupted . | . . . . . . . . . . . . Combat Hostiles . | . . . . . . . . . . . . Robots Corrupted 8 | . . . 6 1 . . . . . . 1 Combat Hostiles 5 | . . . 4 . . . . . . . 1 Parts Fried 16 | . 1 . 8 4 . . . . . . 3 Impact Corruptions 17 | . . . 14 3 . . . . . . . Robots Melted . | . . . . . . . . . . . . Combat Hostiles . | . . . . . . . . . . . . Parts Melted 1 | . . 1 . . . . . . . . . Heat Transferred 1736 | 50 100 50 . 999 . . . . . . 537 Parts Sabotaged . | . . . . . . . . . . . . Parts Stolen . | . . . . . . . . . . . . Parts Stripped . | . . . . . . . . . . . . Power Chain Reactions 8 | 1 1 1 . . . . . . . . 5 Alert | -11 -10 -10 -9 -8 -7 -7 -6 -5 -5 -5 -5 ------- Run | Yrd Mat Min Mat Mat Fac DSF Fac Fac Upp Upp War Maximum Alert Level 1 | . . . . 1 . . . . . . . Low Security (%) 98 | 100 100 100 100 90 100 100 100 100 . . . Level 1 1 | . . . . 9 . . . . . . . Level 2 . | . . . . . . . . . . . . Level 3 . | . . . . . . . . . . . . Level 4 . | . . . . . . . . . . . . Level 5 . | . . . . . . . . . . . . High Security . | . . . . . . . . . . . . Max Security . | . . . . . . . . . . . . Peak Influence 215 | 5 112 64 137 215 23 55 125 . . . . Initial 53 | . . 34 . 53 23 2 23 . . . . Average 24 | 2 14 6 26 65 4 42 23 . . . . Influence Increases 1940 | 10 186 139 339 536 15 80 232 . 90 30 283 Destroy 0b10 Robot/C 900 | . 100 80 140 280 . 40 100 . . . 160 Destroy 0b10 Robot/NC 125 | 10 5 5 40 50 . . 15 . . . . Destroy Leader 178 | . 20 20 52 56 . 10 20 . . . . Allied During Kill 18 | . . . . . . . . . . . 18 Successful Hack 67 | . 19 . . 15 10 . 23 . . . . Disable Machine 60 | . 15 . . 15 . . 30 . . . . Destroy Structure 112 | . 12 4 2 60 5 . 29 . . . . Partial Spotted 15 | . . . . . . . 15 . . . . Lose Combat Pursuer 465 | . 15 30 105 60 . 30 . . 90 30 105 Influence Decreases 1799 | 10 96 229 210 613 63 39 277 . 20 80 162 Entered New Map 219 | . . 56 . 76 29 2 22 . . 14 20 Time Decay 1201 | 10 86 173 195 347 34 . 222 . 20 66 48 Lost Part 195 | . 10 . 15 40 . 37 33 . . . 60 Lost Ally 34 | . . . . . . . . . . . 34 Purge Threat 150 | . . . . 150 . . . . . . . Squads Dispatched 14 | . 2 1 3 1 1 1 3 2 . . . Investigation 8 | . 1 1 2 1 1 . . 2 . . . Extermination 3 | . . . . . . . 3 . . . . Reinforcement 3 | . 1 . 1 . . 1 . . . . . Assault . | . . . . . . . . . . . . Garrison . | . . . . . . . . . . . . Intercept . | . . . . . . . . . . . . Searches Triggered . | . . . . . . . . . . . . Construction Impeded . | . . . . . . . . . . . . Haulers Reinforced . | . . . . . . . . . . . . Active Scanning Responses . | . . . . . . . . . . . . Cargo Convoy Interrupts . | . . . . . . . . . . . . Stealth | -11 -10 -10 -9 -8 -7 -7 -6 -5 -5 -5 -5 --------- Run | Yrd Mat Min Mat Mat Fac DSF Fac Fac Upp Upp War Distress Signals 6 | . . . 3 1 . . 1 . . . 1 Communications Jammed . | . . . . . . . . . . . . Distress Signals . | . . . . . . . . . . . . Times Spotted 146 | . 14 11 23 23 . 10 16 1 10 4 34 Peak Tracking Total 20 | . 4 3 5 4 . 1 5 1 5 3 20 Tactical Retreats 23 | . 1 2 5 3 . 2 5 . 2 1 2 Traps | -11 -10 -10 -9 -8 -7 -7 -6 -5 -5 -5 -5 ------- Run | Yrd Mat Min Mat Mat Fac DSF Fac Fac Upp Upp War Traps Triggered 5 | . 1 . 2 . 1 1 . . . . . Indirectly . | . . . . . . . . . . . . Trap Hack Attempts . | . . . . . . . . . . . . Triggered . | . . . . . . . . . . . . Disarmed . | . . . . . . . . . . . . Reprogrammed . | . . . . . . . . . . . . Reused . | . . . . . . . . . . . . Traps Extracted . | . . . . . . . . . . . . Installed . | . . . . . . . . . . . . Triggered . | . . . . . . . . . . . . Machines | -11 -10 -10 -9 -8 -7 -7 -6 -5 -5 -5 -5 ---------- Run | Yrd Mat Min Mat Mat Fac DSF Fac Fac Upp Upp War Machines Disabled 7 | . 1 . . 1 . . 2 . . . 3 Max in Single Turn 2 | . 1 . . 1 . . 2 . . . 2 Machines Repaired . | . . . . . . . . . . . . Machines Dismantled . | . . . . . . . . . . . . Machines Sabotaged . | . . . . . . . . . . . . Overloaded Fab Kills . | . . . . . . . . . . . . Hacking | -11 -10 -10 -9 -8 -7 -7 -6 -5 -5 -5 -5 --------- Run | Yrd Mat Min Mat Mat Fac DSF Fac Fac Upp Upp War Machines Accessed 28 | . 2 2 1 6 2 . 5 3 . 1 6 Terminals 16 | . 2 1 1 6 2 . 4 . . . . Fabricators . | . . . . . . . . . . . . Repair Stations 2 | . . . . . . . . 2 . . . Recycling Units 1 | . . . . . . . . 1 . . . Scanalyzers . | . . . . . . . . . . . . Garrison Access 1 | . . . . . . . 1 . . . . Total Hacks 73 | . 8 5 4 17 4 . 11 7 . 1 16 Successful 46 | . 6 4 1 9 4 . 4 1 . 1 16 Failed 27 | . 2 1 3 8 . . 7 6 . . . Catastrophic 10 | . 1 . . 2 . . 4 3 . . . Database Lockouts . | . . . . . . . . . . . . Manual 37 | . 6 2 4 14 3 . 7 . . . 1 Terminals 47 | . 8 4 4 17 4 . 10 . . . . Fabricators . | . . . . . . . . . . . . Repair Stations 6 | . . . . . . . . 6 . . . Recycling Units 1 | . . . . . . . . 1 . . . Scanalyzers . | . . . . . . . . . . . . Garrison Access 1 | . . . . . . . 1 . . . . Terminal Hacks 34 | . 4 4 . 5 2 . 2 . . 1 16 Record 17 | . . 1 . . . . 1 . . . 15 Robot Analysis 4 | . 4 . . . . . . . . . . Open Door 3 | . . 1 . . . . . . . 1 1 Open DSF 1 | . . . . . 1 . . . . . . Unreport Threat 1 | . . . . 1 . . . . . . . Locate Traps 2 | . . 1 . 1 . . . . . . . Patrol Status 1 | . . . . 1 . . . . . . . Zone Layout 5 | . . 1 . 2 1 . 1 . . . . Fabricator Hacks . | . . . . . . . . . . . . Repair Station Hacks . | . . . . . . . . . . . . Recycling Unit Hacks 1 | . . . . . . . . 1 . . . Report Inventory 1 | . . . . . . . . 1 . . . Scanalyzer . | . . . . . . . . . . . . Garrison Access Hacks . | . . . . . . . . . . . . Unauthorized Hacks 11 | . 2 . 1 4 2 . 2 . . . . Terminals 11 | . 2 . 1 4 2 . 2 . . . . Botnet 10 | . 2 . 1 4 1 . 2 . . . . Sabotage 1 | . . . . . 1 . . . . . . Fabricators . | . . . . . . . . . . . . Repair Stations . | . . . . . . . . . . . . Recycling Units . | . . . . . . . . . . . . Scanalyzers . | . . . . . . . . . . . . Garrison Access . | . . . . . . . . . . . . Data Cores Recovered . | . . . . . . . . . . . . Used . | . . . . . . . . . . . . Hacking Detections 17 | . 2 1 1 6 . . 5 2 . . . Full Trace Events 4 | . . 1 . 1 . . . 2 . . . Feedback Events . | . . . . . . . . . . . . Feedback Blocked . | . . . . . . . . . . . . Robot Schematics Acquired . | . . . . . . . . . . . . Robots Built . | . . . . . . . . . . . . Authchips . | . . . . . . . . . . . . Time . | . . . . . . . . . . . . Total Robot Build Rating . | . . . . . . . . . . . . Part Schematics Acquired . | . . . . . . . . . . . . Parts Built . | . . . . . . . . . . . . Authchips . | . . . . . . . . . . . . Time . | . . . . . . . . . . . . Total Part Build Rating . | . . . . . . . . . . . . Parts Repaired . | . . . . . . . . . . . . Time . | . . . . . . . . . . . . Parts Recycled . | . . . . . . . . . . . . Recycled Matter . | . . . . . . . . . . . . Retrieved Matter . | . . . . . . . . . . . . Retrieved Components . | . . . . . . . . . . . . Parts Scanalyzed . | . . . . . . . . . . . . Part Schematics Acquired . | . . . . . . . . . . . . Parts Damaged . | . . . . . . . . . . . . Bothacking | -11 -10 -10 -9 -8 -7 -7 -6 -5 -5 -5 -5 ------------ Run | Yrd Mat Min Mat Mat Fac DSF Fac Fac Upp Upp War Used RIF Installer . | . . . . . . . . . . . . Robots Hacked . | . . . . . . . . . . . . Non-combat . | . . . . . . . . . . . . Combat . | . . . . . . . . . . . . Robot Hacks Applied . | . . . . . . . . . . . . Relay Couplers Released . | . . . . . . . . . . . . Fabnet Peak Effective % . | . . . . . . . . . . . . Robots Rewired 5 | . . . . . . . . . . . 5 Allies Hacked . | . . . . . . . . . . . . Hacks Repelled . | . . . . . . . . . . . . Allies | -11 -10 -10 -9 -8 -7 -7 -6 -5 -5 -5 -5 -------- Run | Yrd Mat Min Mat Mat Fac DSF Fac Fac Upp Upp War Total Allies 5 | . . . . . . . . . . . 5 Largest Group 5 | . . . . . . . . . . . 5 Highest-Rated Group 223 | . . . . . . . . . . . 223 Highest-Rated Ally 49 | . . . . . . . . . . . 49 Total Orders . | . . . . . . . . . . . . Ally Attacks 22 | . . . . . . . . . . . 22 Total Damage 629 | . . . . . . . . . . . 629 Kills 2 | . . . . . . . . . . . 2 Allies Corrupted 2 | . . . . . . . . . . . 2 Allies Melted 1 | . . . . . . . . . . . 1 Intel | -11 -10 -10 -9 -8 -7 -7 -6 -5 -5 -5 -5 ------- Run | Yrd Mat Min Mat Mat Fac DSF Fac Fac Upp Upp War Active Infowar (turns) 5101 | . 875 1314 467 872 197 415 961 . . . . Sensors 1836 | . . . . 263 197 415 961 . . . . Terrain 718 | . 108 . . 610 . . . . . . . Seismic 2443 | . 767 1209 467 . . . . . . . . ECM 1115 | . . 105 . . . 65 945 . . . . Robot Analysis Total 4 | . 4 . . . . . . . . . . Derelict Logs Recovered 3 | . . 1 . . . . . . . 2 . Drone Launches . | . . . . . . . . . . . . Drone Recoveries . | . . . . . . . . . . . . Exploration | -11 -10 -10 -9 -8 -7 -7 -6 -5 -5 -5 -5 ------------- Run | Yrd Mat Min Mat Mat Fac DSF Fac Fac Upp Upp War Turns Passed 7394 | 47 939 1593 681 884 197 415 980 91 222 156 1189 Spaces Moved 5416 | 27 438 817 334 758 199 275 856 181 431 311 789 Core 1244 | . . . 2 . . . 11 181 431 311 308 Treads 1450 | . 339 817 212 . . . . . . . 82 Legs 142 | 27 99 . 16 . . . . . . . . Wheels 2181 | . . . 104 758 199 275 845 . . . . Hover 399 | . . . . . . . . . . . 399 Flight . | . . . . . . . . . . . . Fastest Speed 50 | 120 120 160 80 80 80 86 50 50 50 50 50 Average Speed 110 | 120 182 160 144 82 86 97 89 50 50 50 133 Slowest Speed 450 | 120 240 160 450 95 105 115 115 50 50 50 256 Overloaded Moves . | . . . . . . . . . . . . Propulsion Burnouts . | . . . . . . . . . . . . Robots Hopped . | . . . . . . . . . . . . Potential Cave-ins 2 | . . . . . . . 2 . . . . Cave-ins Triggered . | . . . . . . . . . . . . Exploration Rate (%) 45 | 3 59 98 29 42 5 92 25 4 56 45 86 Regions Visited 11 Branch Regions 4 Pre-discovered Areas 1 | . . 1 . . . . . . . . . Known Exits Taken 3 | . . . . 1 1 . . . . 1 . Unknown Exits Taken 7 | 1 1 1 1 . . . 1 1 1 . . Scrap Searched 6 | . . 2 . . . . . . 3 1 . Spaces Dug 82 | . 7 . 2 42 5 . 21 . . . 5 Terrain Destroyed 137 | 8 12 4 2 62 5 . 30 . . . 14 Melee 43 | . . . 2 15 5 . 21 . . . . Projectile 9 | . 8 . . . . . 1 . . . . AOE 85 | 8 4 4 . 47 . . 8 . . . 14 Terrain Rammed . | . . . . . . . . . . . . Walls Destroyed . | . . . . . . . . . . . . Machines Disabled . | . . . . . . . . . . . . Actions | -11 -10 -10 -9 -8 -7 -7 -6 -5 -5 -5 -5 --------- Run | Yrd Mat Min Mat Mat Fac DSF Fac Fac Upp Upp War Total 6429 | 33 516 1073 465 885 213 395 1012 180 436 310 911 Wait 516 | 3 27 223 49 19 . 79 100 . . . 16 Move 5405 | 26 437 816 333 757 198 274 855 180 430 310 789 Hop . | . . . . . . . . . . . . Pick Up 46 | . 9 7 10 8 . 7 5 . . . . Fast Attach 29 | . 1 . 7 . 4 4 . . 1 . 12 Attach 24 | . 1 1 5 8 1 4 3 . . . 1 Detach 11 | . . . 5 . 3 3 . . . . . Swap 48 | . 10 6 2 17 1 2 5 . . . 5 Drop 44 | . 3 3 10 7 1 8 4 . 1 . 7 Fire 127 | 4 28 16 11 42 . 14 5 . . . 7 Melee 100 | . . . 33 27 5 . 35 . . . . Ram 4 | . . . . . . . . . 4 . . Kick . | . . . . . . . . . . . . Crush 1 | . . 1 . . . . . . . . . Escape Stasis . | . . . . . . . . . . . . Rewire 74 | . . . . . . . . . . . 74 Trap . | . . . . . . . . . . . . Miscellaneous . | . . . . . . . . . . . . Route ------- -11/Scrapyard -10/Materials (discovered 2 exits: *Mat / *Min) -10/Mines (discovered 3 exits: *Mat x2 / [*Exi]) -9/Materials (discovered 2 exits: *Mat / [*Min]) -8/Materials -7/Factory -7/DSF -6/Factory -5/Factory -5/Upper Caves -5/Upper Caves -5/Warlord History --------- Turn | Location | Event 1 | -11/Scrapyard | Discovered new exit (range 2) 48 | -11/Scrapyard | Entered Materials 317 | -10/Materials | Build established: Mutant 663 | -10/Materials | Discovered new exit (range 8) 945 | -10/Materials | Discovered new exit (range 10) 987 | -10/Materials | Entered Mines 1021 | -10/Mines | Learned Materials garrison access intel 1147 | -10/Mines | Deemed a non-threat by the Exiles lab entrance 1147 | -10/Mines | Discovered new exit (range 5) 1217 | -10/Mines | Discovered new exit (range 10) 1223 | -10/Mines | Learned location of Storage (-8) 1320 | -10/Mines | Discovered new exit (range 7) 1420 | -10/Mines | Met a Derelict shopkeep closing up shop 1880 | -10/Mines | YI-UF0 nonchalantly dropped a Grenade Launcher on the ground 2063 | -10/Mines | Found a damaged Exp. Sensor Array with a note attached 2067 | -10/Mines | Found Prototype Device 2537 | -10/Mines | Found a hidden stash of uninstalled traps 2580 | -10/Mines | Entered Materials 2580 | -9/Materials | Evolved 2 slots: Propulsion x2 2796 | -9/Materials | Discovered new exit (range 10) 3069 | -9/Materials | Core integrity fell below 50% 3078 | -9/Materials | Lost 4 parts (1p2n1u) 3243 | -9/Materials | Discovered new exit (range 16) 3261 | -9/Materials | Entered another Materials area 3261 | -8/Materials | Evolved 2 slots: Utility x2 3262 | -8/Materials | Loaded intel: 1 garrison access location 3536 | -8/Materials | Build established: Scavenger-Mutant 3753 | -8/Materials | Discovered new exit (range 7) 3882 | -8/Materials | Identified Exp. Sensor Array 3942 | -8/Materials | Build established: Mutant 4144 | -8/Materials | Identified exit to Factory 4145 | -8/Materials | Entered Factory 4145 | -7/Factory | Evolved 2 slots: Power x1, Utility x1 4250 | -7/Factory | Build established: Scavenger-Mutant 4341 | -7/Factory | Identified exit to DSF 4342 | -7/Factory | Entered DSF 4370 | -7/DSF | Additional patrols routed to DSF 4412 | -7/DSF | Lost 3 parts (2n1u) 4557 | -7/DSF | Build established: Mutant 4706 | -7/DSF | Discovered new exit (range 14) 4756 | -7/DSF | Identified exit to Factory 4757 | -7/DSF | Entered Factory 4757 | -6/Factory | Evolved 2 slots: Utility x1, Weapon x1 5732 | -6/Factory | Released all parts (4) 5734 | -6/Factory | Discovered new exit (range 7) 5737 | -6/Factory | Entered another Factory area 5737 | -5/Factory | Evolved 2 slots: Utility x2 5762 | -5/Factory | Lost 6 parts (2p1n2u1w) 5817 | -5/Factory | Discovered new exit (range 15) 5828 | -5/Factory | Entered Upper Caves 5829 | -5/Upper Caves | Encountered a Warlord checkpoint 6044 | -5/Upper Caves | Discovered new exit (range 12) 6050 | -5/Upper Caves | Core integrity fell below 50% 6050 | -5/Upper Caves | Entered another Upper Caves area 6104 | -5/Upper Caves | Learned Factory non-interactive machine intel 6186 | -5/Upper Caves | Identified exit to Warlord 6206 | -5/Upper Caves | Entered Warlord 6317 | -5/Warlord | Visited the Vortex Lab 6337 | -5/Warlord | Warlord's base attacked by MAIN.C 6341 | -5/Warlord | Found Prototype Energy Gun 6341 | -5/Warlord | Identified Vortex Rail 6346 | -5/Warlord | Found Prototype Energy Gun 6346 | -5/Warlord | Identified Vortex Rifle 6451 | -5/Warlord | Met Warlord 6640 | -5/Warlord | Build established: Tank 6687 | -5/Warlord | Warlord forces counterattacked 7012 | -5/Warlord | Warlord base infiltrated, sounded retreat 7056 | -5/Warlord | Lost 4 allies 7070 | -5/Warlord | Build established: Commander-Tank 7283 | -5/Warlord | P-80 Master assimilated allied Sentinel 6a 7285 | -5/Warlord | P-80 Master assimilated allied Slayer 6a 7316 | -5/Warlord | Spotted Striker 7319 | -5/Warlord | Lost 3 allies 7358 | -5/Warlord | Released all parts (10) 7364 | -5/Warlord | Spotted Striker 7366 | -5/Warlord | Core integrity fell below 20% 7380 | -5/Warlord | Spotted Striker 7386 | -5/Warlord | Lost 7 parts (2p4u1w) 7387 | -5/Warlord | Spotted Striker 7395 | -5/Warlord | Destroyed by Striker with Compact Linear Accelerator Last Messages --------------- 07354_ Acquired 10 matter. 07355_ Penetrated by Slug. 07355_ Lgt. Antimatter Reactor destroyed. 07355_ Penetrated by Slug. 07358_ Released Imp. Cooling System. 07358_ Released Beamcaster. 07358_ Released Lyr. Medium Armor Plating. 07358_ Released Arm. Medium Treads. 07358_ Released Backup Plating III. 07358_ Released Broken Arm. Medium Treads. 07358_ Released Arm. Medium Treads. 07358_ Released Imp. Target Analyzer. 07358_ Released Ion Cannon. 07376_ E-15 Imp destroyed. 07380_ System corrupted: Matter fused (-10). 07380_ E-15 Imp destroyed. 07392_ Knocked back. 07393_ E-15 Imp destroyed. 07394_ Knocked back. 07394_ Acquired 10 matter. Map ----- +----------------------------------------------------+ | | | | | | | | | | | | | | | | | | | | | | | | | | | | | | | | | | | | | | | | | ############????????????????????#????????????????? | | # #????????????#######;#????????????????? | | # #????????????# #????????????????? | | # #????????????# %% #????????????????? | | ^ # #????????????#=!%/ #????????????????? | | ##/###/###############@K!= #????????????????? | | ! +!K #????????????????? | | ## #####/############## ##########???##"""##?????? | | ## %= #????????# #?#""""" #??## X##????? | | ## ! #????????# #?#" " #??# ###### | | ## #????????# #?#" " #######+##### # | | ##/! #????????# #?#" " # #??# # | | #####=!%! #????????# #?#" +^ #### # | | ????# ! ! #????????# #?#" #^ + # | | ###?# #????????# #?#""" #^#### ^ ^^^# # | | ""#?# ! #????????? #?########^#??# ##### | | #?#=% #????????? #????????# #??# #???? | | #"##+#####/###+###### #????????# #??# ##??? | | + #????????# #??# #??? | | + #????????# #??# ##??? | | %"% +????#####+#### #???? | | #########+######### #????# # ##??? | | ] #????# #????# #????# /// # #??? | | #????# ###### #????# # ##??? | | #????# + ###### !!! # #??? | | ###????# ###### + # ##??? | | ???????# #######+####### # #??#" | | ???????# #^ # # #??#" | | ######## #^ # / #??#" | | ## # """"" """"" # #= #??#" | +----------------------------------------------------+ Best States ------------- Heat Dissipation 130 Energy Generation 31 Energy Capacity 520 Matter Stores 300 Matter Capacity 300 Sight Range 16 Robot Scan Range 20 Terrain Scan Range 16 Terrain Scan Density 10 ECM Strength 1 Additional Mass Support 9 Armor Coverage 535 Resistance: KI 20 Resistance: EM 15 Weapon Shielding 66 Evasion (%) 55 Target Analysis 6 Recoil Reduction 3 Authchip Count 1 Item Schematics ----------------- None Robot Schematics ------------------ None Fabricated ------------ Nothing Repaired ---------- Nothing Alien Tech Used ----------------- None Achievements -------------- A Powerful Ally? Challenges ------------ None Game ------ Seed SubatomicFactoryPod Manual? 0 Play Time 01:29:16 Cumulative 72.6 hours Start 2025.06.05 @ 16:49:11 End 2025.06.05 @ 18:20:13 Sessions 1 Manual Loads 0 Difficulty Rogue Special Mode None Game No. 78 Rogue 78 Adventurer 0 Explorer 0 Win Type - Total 0 Types 0/0/0/0/0/0/0/0/0/0 Lore% 44 Gallery% 33 Achievement% 30 Wizard Run 0 Options --------- Layout 0 ASCII 0 Keyboard 1 Movement Numpad Keybinds 0 Fullscreen 2 Font 18/SmallcapsGlow Map View 76x50 Zoom Use 0% Tactical HUD 1 Map Filters NONE Filters NONE Steam 1 RUN: e2f18457-e9e5-4a66-8b75-f55b48ddbb80